Cogmind - Beta 12 X3 @@@ ROGUE MODE // 2022.09.19 @ 11:51:58 Player: PlasticHeart Result: Self-destructed Performance ------------- Evolutions (6) 3000 Regions Visited (30) 6000 Robots Destroyed (194) 970 Value Destroyed (4989) 4989 Prototype IDs (61) 1220 Alien Tech Used (0) 0 Bonus (3318) 3318 TOTAL SCORE: 19497 Bonus ------- High Alert Combat Kills 632 Follower Combat Kills 2680 Network Hubs Disabled 200 Aligned with FarCom 300 Met Data Miner 300 Met Imprinter 300 Built Enhanced Grunts 300 A7 Reached Mainframe 300 Met R17 at Cetus 500 Friendly Fire -2194 Cogmind --------- Core Integrity 936/1150 Matter 242/300 Energy 76/150 System Corruption 13% Temperature Cool (0) Movement Hovering (66) Location -4/Factory Parts ------- > --- POWER (2) -------- Micro Fission Core > --- PROPULSION (5) --- Treaded Heavy-Gyrokinetic Exoskeleton Antigrav System Improved Linear Gravjet Diametric Drive > --- UTILITY (10) ----- Scrap Engine Medium Storage Unit Gravity Neutralizer Improved Trap Scanner Advanced Signal Interpreter Advanced Melee Analysis Suite System Shield Hacking Drone Bay (1/1) > --- WEAPON (2) ------- KE Penetrator Railgun > --- INVENTORY (10) --- Matter Compressor (250) Centrium Medium Armor Plating Long-range Proton Cannon Lance Lance Peak State ------------ > --- POWER ------------ Micro Fission Core Fusion-Deuterium Engine > --- PROPULSION ------- Treaded Heavy-Gyrokinetic Exoskeleton Antigrav System Antigrav System Improved Linear Gravjet Diametric Drive > --- UTILITY ---------- Scrap Engine Medium Storage Unit Gravity Neutralizer Improved Trap Scanner Advanced Sensor Array Advanced Signal Interpreter Advanced Melee Analysis Suite System Shield Hacking Drone Bay > --- WEAPON ----------- KE Penetrator Railgun > --- INVENTORY -------- Matter Compressor Centrium Medium Armor Plating Long-range Proton Cannon Lance Lance [Rating: 116] Favorites ----------- Power Micro Nuclear Core Engine Improved Ion Engine Power Core Micro Nuclear Core Reactor Light Quantum Reactor Propulsion Aerolev Unit Treads Treaded Heavy-Gyrokinetic Exoskeleton Wheel Wheel Hover Unit Aerolev Unit Flight Unit Improved VTOL Module Utility System Shield Device Armored Scrap Engine Storage Medium Storage Unit Processor Advanced Signal Interpreter Hackware System Shield Protection Hardened Light Armor Plating Weapon Hypervelocity Accelerated Coil Construct/C Energy Gun Pulse Rifle Energy Cannon Long-range Proton Cannon Ballistic Gun Enhanced Autogun Ballistic Cannon Hypervelocity Accelerated Coil Construct/C Launcher Concussive RPG Special Weapon RU-N14's Throwing Claymores Impact Weapon Impact Mace Slashing Weapon Katana Piercing Weapon Lance Build | -11 -10 -10 -9 -9 -9 -8 -8 -8 -7 -7 -7 -7 -7 -7 -6 -6 -6 -6 -6 -6 -6 -5 -5 -5 -5 -5 -5 -5 -5 -4 ------- Run | Scr Mat Min Mat Min Exi Min Mat Sto Fac Was Fac Low Low Zio Pro Fac Was Fac Low Low Dat Pro Fac Was Fac Ext Cet Arc Hub Fac Slots Evolved 12 | . . . 2 . . . 2 . 2 . . . . . . 2 . . . . . . 2 . . . . . . 2 Power 1 | . . . . . . . . . . . . . . . . . . . . . . . . . . . . . . 1 Propulsion 3 | . . . . . . . 1 . . . . . . . . 1 . . . . . . 1 . . . . . . . Utility 8 | . . . 2 . . . 1 . 2 . . . . . . 1 . . . . . . 1 . . . . . . 1 Weapon . | . . . . . . . . . . . . . . . . . . . . . . . . . . . . . . . Parts Attached 186 | 6 8 2 9 5 . 4 13 24 10 1 3 3 1 4 1 14 2 7 1 . 2 2 23 4 4 5 7 . 5 16 Power 19 | 1 1 1 1 . . 1 . 3 1 . . . . . . . . 1 . . . . 2 2 1 2 . . 1 1 Engine 9 | 1 1 1 1 . . 1 . 3 . . . . . . . . . . . . . . 1 . . . . . . . Core 7 | . . . . . . . . . 1 . . . . . . . . 1 . . . . 1 . 1 2 . . . 1 Reactor 3 | . . . . . . . . . . . . . . . . . . . . . . . . 2 . . . . 1 . Propulsion 38 | 2 . . 3 3 . 1 3 5 3 . 2 1 . . . 4 . . . . 1 . 5 . . . 1 . . 4 Treads . | . . . . . . . . . . . . . . . . . . . . . . . . . . . . . . . Leg . | . . . . . . . . . . . . . . . . . . . . . . . . . . . . . . . Wheel 14 | 2 . . 2 3 . 1 2 4 . . . . . . . . . . . . . . . . . . . . . . Hover 19 | . . . 1 . . . . 1 . . 2 1 . . . 4 . . . . 1 . 5 . . . 1 . . 3 Flight 5 | . . . . . . . 1 . 3 . . . . . . . . . . . . . . . . . . . . 1 Utility 60 | 1 3 . 3 2 . 1 4 4 5 . 1 . 1 2 . 4 . 4 1 . 1 . 10 1 2 2 3 . 1 4 Device 34 | . 1 . . 1 . . 2 2 3 . . . . 2 . 2 . 4 1 . 1 . 6 1 2 1 1 . . 4 Storage 4 | 1 1 . . . . . . . . . . . 1 . . . . . . . . . . . . . . . 1 . Processor 5 | . . . . . . . . 1 1 . . . . . . 1 . . . . . . 2 . . . . . . . Hackware 4 | . . . . . . . . . 1 . 1 . . . . 1 . . . . . . 1 . . . . . . . Protection 13 | . 1 . 3 1 . 1 2 1 . . . . . . . . . . . . . . 1 . . 1 2 . . . Artifact . | . . . . . . . . . . . . . . . . . . . . . . . . . . . . . . . Weapon 69 | 2 4 1 2 . . 1 6 12 1 1 . 2 . 2 1 6 2 2 . . . 2 6 1 1 1 3 . 3 7 Energy Gun 13 | 2 4 1 2 . . 1 1 . . 1 . 1 . . . . . . . . . . . . . . . . . . Energy Cannon 1 | . . . . . . . . . . . . . . . . . . . . . . . . . . . . . . 1 Ballistic Gun 12 | . . . . . . . 4 6 . . . . . . . . . . . . . . . . . . . . . 2 Ballistic Cannon 1 | . . . . . . . . . . . . . . . . . . . . . . . . . . . . . . 1 Launcher 3 | . . . . . . . 1 1 . . . . . . . . . 1 . . . . . . . . . . . . Special Weapon 13 | . . . . . . . . . . . . . . 1 1 2 1 . . . . 1 1 1 . 1 1 . 2 1 Impact Weapon 5 | . . . . . . . . . . . . . . . . 1 1 1 . . . 1 1 . . . . . . . Slashing Weapon 11 | . . . . . . . . 5 1 . . 1 . 1 . 3 . . . . . . . . . . . . . . Piercing Weapon 10 | . . . . . . . . . . . . . . . . . . . . . . . 4 . 1 . 2 . 1 2 Special Melee Weapon . | . . . . . . . . . . . . . . . . . . . . . . . . . . . . . . . Unidentified Prototypes 16 | . . . . . . . 1 2 . . . . . 2 . 2 . 1 . . . . 2 1 2 . 1 . . 2 Corrupted Parts 1 | . . . . . . . . . . . . . . . . . . . . . . . . . . . . . . 1 System Corruption 10 | . . . . . . . . . . . . . . . . . . . . . . . . . . . . . . 10 Parts Lost 31 | . 4 2 2 2 . 3 1 . . . . . . . . . . . . . . . 4 . . . 1 . 8 4 Power 4 | . . 1 . . . . . . . . . . . . . . . . . . . . . . . . . . 2 1 Propulsion 14 | . 1 . 1 2 . 1 1 . . . . . . . . . . . . . . . 2 . . . . . 5 1 Utility 7 | . . . . . . 1 . . . . . . . . . . . . . . . . 2 . . . 1 . 1 2 Weapon 6 | . 3 1 1 . . 1 . . . . . . . . . . . . . . . . . . . . . . . . Highest Loss Streak 7 | . 4 1 2 2 . 3 1 . . . . . . . . . . . . . . . 2 . . . 1 . 7 3 To Critical Strikes . | . . . . . . . . . . . . . . . . . . . . . . . . . . . . . . . Average Slot Usage (%) 89 | . 92 80 88 95 100 88 96 99 83 88 88 84 92 92 87 86 89 92 93 93 87 86 85 94 94 94 89 88 84 63 Engine 3 | . 14 11 11 11 11 11 9 9 5 . . . . . . . . . . . . . 1 3 . . . . . 4 Core 3 | . . . . . . . . . 1 7 7 7 7 7 7 6 6 6 6 6 6 6 2 . 3 5 5 5 3 1 Wheel 5 | . 24 14 15 22 22 18 24 26 . . . . . . . . . . . . . . . . . . . . . . Hover 15 | . . . . . . . . . . . 5 15 23 23 23 22 26 25 26 26 18 20 22 29 29 29 29 29 26 6 Flight 1 | . . . . . . . . . 22 23 14 . . . . . . . . . 1 . . . . . . . . . Device 14 | . 2 14 11 6 11 11 9 11 21 23 16 15 15 15 15 19 20 19 20 20 20 20 17 17 17 11 7 11 11 13 Storage 6 | . 14 14 11 11 11 11 9 9 . . . . 1 7 7 6 6 6 6 6 6 6 5 5 5 5 5 5 5 5 Processor 7 | . . . . . . . . 8 14 15 15 15 13 7 7 6 6 6 6 6 6 6 10 17 17 17 15 11 11 10 Hackware 7 | . . . . . . . . . 6 7 13 15 15 15 15 13 13 13 13 13 13 13 9 5 5 5 5 5 5 5 Protection 5 | . 10 . 18 22 22 14 27 16 . . . . . . . . . . . . . . . . . 5 5 5 4 . Energy Gun 5 | . 27 25 20 22 22 22 6 . . 3 7 7 7 7 7 6 6 2 . . . . . . . . . . . . Energy Cannon 1 | . . . . . . . . . . . . . . . . . . 3 6 6 6 6 1 . . . . . . . Ballistic Gun 1 | . . . . . . . 11 11 . . . . . . . . . . . . . . . . . . . . . 1 Impact Weapon 1 | . . . . . . . . . . . . . . . . 2 3 6 6 6 6 2 1 . . . . . . . Slashing Weapon 1 | . . . . . . . . 5 6 7 7 6 7 7 2 1 . . . . . . . . . . . . . . Piercing Weapon 2 | . . . . . . . . . . . . . . . . . . . . . . . 8 6 9 7 6 11 6 8 Naked Turns . | . . . . . . . . . . . . . . . . . . . . . . . . . . . . . . . Heaviest Build 50 | 13 32 32 38 38 38 40 50 48 13 13 13 15 25 25 25 32 27 28 28 28 28 32 32 42 39 41 46 43 49 42 Greatest Support 50 | 26 26 10 20 26 26 26 38 38 15 15 16 25 25 25 25 36 34 50 50 50 50 38 49 45 45 45 45 43 43 44 Greatest Overweight (x) 12 | . 3 3 3 1 1 3 1 1 . . . . . . . 1 . 1 . . . . 1 1 . . 1 . 12 2 Average Overweight (x) . | . 1 2 1 1 1 1 1 . . . . . . . . . . . . . . . . . . . . . . . Largest Inventory Capacity 15 | 8 15 15 15 15 15 15 15 15 15 5 5 5 10 10 10 10 10 10 10 10 10 10 10 10 10 10 10 10 10 10 Average Capacity 10 | 6 14 15 15 15 15 15 15 15 5 5 5 5 5 10 10 10 10 10 10 10 10 10 10 10 10 10 10 10 10 10 Most Carried 15 | 5 7 8 13 15 15 15 15 15 15 5 5 5 10 10 10 10 10 10 10 10 10 10 10 10 10 10 10 7 9 10 Average Carried 9 | 2 4 6 8 14 14 13 14 14 5 5 4 4 5 9 9 9 9 9 10 10 10 10 9 9 9 9 8 7 8 6 Final Capacity 15 | 8 15 15 15 15 15 15 15 15 5 5 5 5 10 10 10 10 10 10 10 10 10 10 10 10 10 10 10 10 10 10 Final Carried 15 | 1 6 7 12 15 15 13 15 15 5 5 4 5 10 10 8 10 10 10 10 10 10 10 8 10 10 10 7 7 9 5 Class Distribution -------------------- 33% | Mutant 28% | Hacker-Mutant 17% | Hacker-Scout 8% | Scout 5% | Scavenger-Mutant Dominant Class ---------------- Mutant | -10/Materials Mutant | -10/Mines Scavenger-Mutant | -9/Materials Scavenger-Mutant | -9/Mines Mutant | -9/Exiles Mutant | -8/Mines Mutant | -8/Materials Mutant | -8/Storage Scout | -7/Factory Scout | -7/Waste Hacker-Scout | -7/Factory Hacker-Mutant | -7/Lower Caves Hacker-Mutant | -7/Lower Caves Hacker-Mutant | -7/Zion Hacker-Mutant | -6/Proximity Caves Hacker-Scout | -6/Factory Hacker-Scout | -6/Waste Hacker-Scout | -6/Factory Hacker-Mutant | -6/Lower Caves Hacker-Mutant | -6/Lower Caves Hacker-Mutant | -6/Data Miner Hacker-Mutant | -5/Proximity Caves Hacker-Scout | -5/Factory Scout | -5/Waste Scout | -5/Factory Mutant | -5/Extension Commander-Sprinter | -5/Cetus Commander-Sprinter | -5/Archives Commander-Mutant | -5/Hub_04(d) Mutant | -4/Factory Resources | -11 -10 -10 -9 -9 -9 -8 -8 -8 -7 -7 -7 -7 -7 -7 -6 -6 -6 -6 -6 -6 -6 -5 -5 -5 -5 -5 -5 -5 -5 -4 ----------- Run | Scr Mat Min Mat Min Exi Min Mat Sto Fac Was Fac Low Low Zio Pro Fac Was Fac Low Low Dat Pro Fac Was Fac Ext Cet Arc Hub Fac Matter Collected 3276 | 175 162 32 90 45 . 39 268 603 143 113 10 50 10 40 14 172 . 239 170 8 . 40 152 106 40 228 111 5 29 182 Remotely . | . . . . . . . . . . . . . . . . . . . . . . . . . . . . . . . Salvage Created 7610 | . 229 134 556 441 . 216 235 728 163 . 109 51 34 . 120 367 162 423 138 . . 318 378 189 342 826 160 . 1034 257 Parts 368 | . 11 8 34 38 . 9 20 51 7 . 11 . 4 . 2 16 1 10 2 . . 7 22 . 13 25 7 . 53 17 Haulers Intercepted 15 | . . . 1 . . . 1 3 . . 1 . . . . 3 . 1 . . . . . . 2 . . . 3 . Recyclers Shooed 6 | . . . 1 2 . . . 1 . . . . . . . . . . . . . . . . . 1 . . . 1 Parts Field Recycled . | . . . . . . . . . . . . . . . . . . . . . . . . . . . . . . . Retrieved Matter . | . . . . . . . . . . . . . . . . . . . . . . . . . . . . . . . Parts Self-Destructed 22 | . . . . . . . . . . . . 4 4 . 2 . . . . . . 12 . . . . . . . . Prevented . | . . . . . . . . . . . . . . . . . . . . . . . . . . . . . . . Kills | -11 -10 -10 -9 -9 -9 -8 -8 -8 -7 -7 -7 -7 -7 -7 -6 -6 -6 -6 -6 -6 -6 -5 -5 -5 -5 -5 -5 -5 -5 -4 ------- Run | Scr Mat Min Mat Min Exi Min Mat Sto Fac Was Fac Low Low Zio Pro Fac Was Fac Low Low Dat Pro Fac Was Fac Ext Cet Arc Hub Fac Combat Hostiles Destroyed 101 | . 7 3 7 13 . 5 12 10 . . . . . . 3 4 1 1 . . . 6 2 1 2 7 2 . 8 7 Melee 8 | . . . . . . . . . . . . . . . . . . . . . . . . . 2 2 . . . 4 Guns 48 | . 5 2 7 13 . 5 8 7 . . . . . . . . . . . . . . . . . . . . . 1 Cannons 14 | . . . . . . . . . . . . . . . . 1 . 1 . . . 1 2 . . 5 2 . 2 . AOE 29 | . 1 1 . . . . 4 3 . . . . . . 3 3 1 . . . . 5 . 1 . . . . 6 1 Classes Destroyed 17 | . 2 1 8 1 . . 1 . . . . . 1 . 1 1 1 . . . . . . . . . . . . . Worker 25 | . . . 1 . . . 3 1 2 . 4 . . . . 1 . 3 . . . . 3 . . . . . 7 . Builder 9 | . . . 3 . . . . . . . . . . . . . . . . . . . . . . . . . 6 . Tunneler 3 | . . . 1 1 . . . . . . . . . . . . . . . . . . 1 . . . . . . . Hauler 15 | . . . 1 . . . 1 3 . . 1 . . . . 3 . 1 . . . . . . 2 . . . 3 . Recycler 13 | . . . 1 2 . 1 . 2 1 . . . . . . . . 2 . . . . 1 . . 2 . . 1 . Minesweeper 1 | . . . . . . . . . . . . . 1 . . . . . . . . . . . . . . . . . Operator 5 | . . . 1 . . . 1 . . . . . . . . 1 . 1 . . . . . . . . . . 1 . Watcher 16 | . . . 3 . . . . 2 2 . . . . . . . . . . . . . 3 . 2 1 1 . 2 . Swarmer 39 | . 3 . 3 7 . 2 9 5 . . . . . . . 3 . . . . . . . . . . . . 4 3 Grunt 25 | . 4 2 2 4 . 2 . 1 . . . . . . 3 . . . . . . 4 . . 1 1 1 . . . Duelist 3 | . . . . 2 . 1 . . . . . . . . . . . . . . . . . . . . . . . . Sentry 14 | . . . 2 . . . 2 4 . . . . . . . . . . . . . . . . . 5 . . . 1 Demolisher 1 | . . 1 . . . . . . . . . . . . . . . . . . . . . . . . . . . . Hunter 9 | . . . . . . . 1 . . . . . . . . . . . . . . 2 . . 1 1 . . 4 . Programmer 7 | . . . . . . . . . . . . . . . . 1 . 1 . . . . 2 . . . . . . 3 Compactor 2 | . . . . . . . . . . . . . . . . . 1 . . . . . . 1 . . . . . . Cetus Guard 1 | . . . . . . . . . . . . . . . . . . . . . . . . . . . 1 . . . Enhanced Grunt 2 | . . . . . . . . . . . . . . . . . . . . . . . . . . . . . 2 . Packrat 1 | . . . . . . . . . . . . 1 . . . . . . . . . . . . . . . . . . Samaritan 4 | . . . . . . . . . . . . . . . 1 . . . 3 . . . . . . . . . . . Thug 3 | . . . . . . . . . . . . . . . . . . . . . . . . . . . . . 3 . Best Kill Streak 11 | . 4 2 6 5 . 5 6 4 5 . 2 . 1 . 3 3 1 3 . . . 4 3 1 4 5 2 . 11 3 Combat Bots Only 4 | . 4 2 3 4 . 4 4 4 . . . . . . 3 3 1 1 . . . 4 2 1 1 4 1 . 4 3 Max Kills in Single Turn 13 | . 1 1 2 1 . 1 4 3 1 . 1 1 1 . 2 2 1 1 1 . . 2 1 1 1 1 1 . 13 1 Gunslinging . | . . . . . . . . . . . . . . . . . . . . . . . . . . . . . . . Exploded 4 | . 1 1 . . . . 4 3 . . . . . . 2 2 1 . . . . 2 . 1 . . . . 4 1 Melee 1 | . . . . . . . . . . . . . . . . . . . . . . . . . 1 1 . . . 1 Uniques/NPCs Destroyed 1 | . . . . . . . . . . . . . . . . . . . . . . . . . . . 1 . . . A7 (-5/Cetus) Combat | -11 -10 -10 -9 -9 -9 -8 -8 -8 -7 -7 -7 -7 -7 -7 -6 -6 -6 -6 -6 -6 -6 -5 -5 -5 -5 -5 -5 -5 -5 -4 -------- Run | Scr Mat Min Mat Min Exi Min Mat Sto Fac Was Fac Low Low Zio Pro Fac Was Fac Low Low Dat Pro Fac Was Fac Ext Cet Arc Hub Fac Damage Taken 6493 | . 432 238 235 240 . 487 657 387 . . . . 15 . 137 78 51 192 . 98 . . 383 . 173 264 175 15 1468 768 Core 1607 | . 54 48 25 57 . 156 45 94 . . . . . . 55 . . 26 . . . . 65 . 43 30 21 . 674 214 Absorbed by Shields 367 | . . . . . . . . . . . . . . . . . . . . . . . . . . 94 53 5 215 . Redirected to Shielding 86 | . 11 . 5 12 . 30 2 . . . . . . . . . . . . . . . . . . 26 . . . . Regen/Repaired (Parts) 193 | . . . . . . . . . 4 . . . . . . 68 . . . . . . 65 56 . . . . . . Core Remaining (%) 68 | 100 . 59 . . . 40 . 74 . . . . . . 92 . . . . . . 96 . . . . . . 16 . Volleys Fired 311 | . 26 5 34 27 . 15 54 35 . . . . . . 5 19 4 3 3 . . 4 5 9 . 32 7 . 7 17 Largest 2 | . 2 2 2 2 . 2 2 2 . . . . . . 1 1 1 1 1 . . 1 1 1 . 1 1 . 1 2 Hottest 126 | . 90 90 126 126 . 126 126 50 . . . . . . 50 50 . 42 42 . . . 42 . . 58 58 . . 81 Shots Fired 485 | . 36 10 64 54 . 28 107 61 . . . . . . 5 19 4 3 3 . . 4 5 9 . 32 7 . 7 27 Gun 395 | . 36 10 64 54 . 28 106 60 . . . . . . 2 16 . . . . . . . . . . . . . 19 Cannon 50 | . . . . . . . . . . . . . . . . . . 3 3 . . . 1 . . 31 6 . . 6 Launcher 2 | . . . . . . . 1 1 . . . . . . . . . . . . . . . . . . . . . . Special 38 | . . . . . . . . . . . . . . . 3 3 4 . . . . 4 4 9 . 1 1 . 7 2 Kinetic 224 | . . . . . . . 90 60 . . . . . . 2 16 . . . . . . . . . 31 6 . . 19 Thermal 171 | . 20 . 46 54 . 28 16 . . . . . . . . . . 3 3 . . . 1 . . . . . . . Explosive 40 | . . . . . . . 1 1 . . . . . . 3 3 4 . . . . 4 4 9 . 1 1 . 7 2 Electromagnetic 50 | . 16 10 18 . . . . . . . . . . . . . . . . . . . . . . . . . . 6 Robot Hit Streak 23 | . 10 7 12 14 . 20 23 8 . . . . . . 6 7 4 2 2 . . 6 10 19 . 22 9 . 1 7 Robot Miss Streak 19 | . 2 3 6 3 . 2 19 8 . . . . . . . 2 . 1 1 . . . . . . 4 1 . 2 2 Penetration Max 1 | . . . . . . . . . . . . . . . . . . . . . . . . . . 1 . . . . Secondary Targets 6 | . 1 . . 2 . 2 . 1 . . . . . . . . . . . . . . . . . . . . . . Max Gunslinging Chain 1 | . 1 . . 1 . 1 . 1 . . . . . . . . . . . . . . . . . . . . . . Shots Hit Robots 424 | . 27 8 40 35 . 23 71 48 5 . 9 1 1 . 5 19 3 10 5 . . 7 18 9 12 28 8 . 8 24 Core Hits 255 | . 12 7 23 18 . 9 35 21 2 . 4 . 1 . 6 8 3 3 2 . . 10 8 5 4 14 8 . 41 11 Critical Kills 8 | . . . . . . . . . . . . . . . . . . . . . . . . . . 7 1 . . . Critical Parts Destroyed 9 | . . . . . . . . . . . . . . . . . . 1 1 . . . 1 . . 5 1 . . . Critical Strikes 34 | . . . 1 1 . . 1 . . . . . . . . . . 1 1 . . 1 2 . 2 18 3 . 2 1 Burn 3 | . . . 1 1 . . 1 . . . . . . . . . . . . . . . . . . . . . . . Destroy 18 | . . . . . . . . . . . . . . . . . . . . . . . . . . 16 2 . . . Smash 3 | . . . . . . . . . . . . . . . . . . 1 1 . . . 1 . . . . . . . Sever 4 | . . . . . . . . . . . . . . . . . . . . . . 1 1 . . 1 1 . . . Impale 6 | . . . . . . . . . . . . . . . . . . . . . . . . . 2 1 . . 2 1 Melee Attacks 294 | . . . . . . . . 25 18 . 28 20 2 1 5 43 . 44 5 1 . 5 50 . 16 7 3 . 12 9 Impact 89 | . . . . . . . . . . . . . . . . 22 . 44 5 1 . 5 12 . . . . . . . Slashing 120 | . . . . . . . . 25 18 . 28 20 2 1 5 21 . . . . . . . . . . . . . . Piercing 85 | . . . . . . . . . . . . . . . . . . . . . . . 38 . 16 7 3 . 12 9 Sneak Attacks 53 | . . . . . . . . 8 4 . 6 1 1 . . 4 . 7 3 . . . 8 . 4 2 2 . 2 1 Combat Hostiles 2 | . . . . . . . . . . . . . . . . . . . . . . . . . 1 1 . . . . Follow-up Attacks 6 | . . . . . . . . . . . . . . . . . . . . . . . 2 . 2 . . . 2 . Damage Inflicted 22467 | . 459 174 710 600 . 390 1480 1385 328 . 559 77 66 . 701 1530 891 905 320 . . 1158 1287 3053 695 815 465 . 3421 998 Guns 4472 | . 389 98 643 600 . 390 1123 657 . . . . . . 44 224 . . . . . . . . . . . . . 304 Cannons 644 | . . . . . . . . . . . . . . . . . . 66 54 . . . . . . 269 65 . . 190 Explosions 9887 | . 70 76 67 . . . 357 123 . . . . . . 540 457 818 . . . . 811 143 2888 . 92 199 . 3014 232 Melee 6551 | . . . . . . . . 605 328 . 559 77 66 . . 778 . 839 266 . . 213 983 . 695 411 162 . 297 272 Ramming . | . . . . . . . . . . . . . . . . . . . . . . . . . . . . . . . Kinetic 2494 | . . . . . . . 931 657 . . . . . . 44 224 . . . . . . . . . 269 65 . . 304 Thermal 2340 | . 215 76 545 600 . 390 336 . . . . . . . . 58 . 66 54 . . . . . . . . . . . Explosive 8266 | . . . . . . . 213 123 . . . . . . 500 399 818 . . . . 811 143 2888 . 92 199 . 1848 232 Electromagnetic 1903 | . 244 98 165 . . . . . . . . . . . 40 . . . . . . . . . . . . . 1166 190 Impact 1872 | . . . . . . . . . . . . . . . . 418 . 839 266 . . 213 136 . . . . . . . Slashing 2908 | . . . . . . . . 605 328 . 559 77 66 . 117 431 73 . . . . 134 161 165 . 43 39 . 110 . Piercing 2684 | . . . . . . . . . . . . . . . . . . . . . . . 847 . 695 411 162 . 297 272 Highest Corruption 21 | . . . . . . . . . . . . . . . . . 6 6 1 1 1 1 7 7 7 7 8 8 21 13 Average Corruption 4 | . . . . . . . . . . . . . . . . . 6 3 1 1 1 1 4 7 7 7 7 8 8 3 Corruption Purged 8 | . . . . . . . . . . . . . . . . . . 5 . . . . 3 . . . . . . . Corruption Blocked . | . . . . . . . . . . . . . . . . . . . . . . . . . . . . . . . Effects 86 | . . . . . . . . . . . . . . . . . 1 19 2 3 1 3 12 5 4 14 4 3 7 8 Message Errors 18 | . . . . . . . . . . . . . . . . . . 5 . 1 . 2 2 . 1 2 1 . 3 1 Matter Fused 18 | . . . . . . . . . . . . . . . . . . 7 . 1 . . 1 . . 4 1 1 1 2 Heat Flow Errors 13 | . . . . . . . . . . . . . . . . . . 3 1 . 1 . 2 2 . 3 . 1 . . Energy Discharges 11 | . . . . . . . . . . . . . . . . . . 1 . . . 1 1 1 1 2 1 . 1 2 Parts Rejected 1 | . . . . . . . . . . . . . . . . . . . . . . . . . . . . . 1 . Data Loss (minor) 14 | . . . . . . . . . . . . . . . . . . 3 1 1 . . 3 1 . 2 . 1 1 1 Data Loss (major) 7 | . . . . . . . . . . . . . . . . . . . . . . . 3 . 2 1 1 . . . Misfires 1 | . . . . . . . . . . . . . . . . . . . . . . . . . . . . . . 1 Alerts 2 | . . . . . . . . . . . . . . . . . 1 . . . . . . 1 . . . . . . Weapon Failures 1 | . . . . . . . . . . . . . . . . . . . . . . . . . . . . . . 1 Overload Shots . | . . . . . . . . . . . . . . . . . . . . . . . . . . . . . . . Overflow Damage 2050 | . 2 . . . . . . 136 113 . 105 63 . . 19 145 . 508 186 . . 119 307 . 97 23 . . 133 94 Projectiles 64 | . . . . . . . . . . . . . . . 5 16 . . . . . 22 13 . . . . . . 8 Explosions 225 | . 2 . . . . . . 5 . . . . . . 14 38 . . . . . . 7 . . . . . 133 26 Melee 1761 | . . . . . . . . 131 113 . 105 63 . . . 91 . 508 186 . . 97 287 . 97 23 . . . 60 Knockbacks 5 | . . . . . . . . . . . . . . . . 1 . 2 . . . 1 . . . 1 . . . . Impact 4 | . . . . . . . . . . . . . . . . 1 . 2 . . . 1 . . . . . . . . Kinetic 1 | . . . . . . . . . . . . . . . . . . . . . . . . . . 1 . . . . Secondary . | . . . . . . . . . . . . . . . . . . . . . . . . . . . . . . . Self-Inflicted Damage 256 | . 27 21 22 . . . . . . . . . . . 26 79 . . . . . . . . . . . . 81 . Shots 8 | . 1 1 1 . . . . . . . . . . . 1 2 . . . . . . . . . . . . 2 . Rammed . | . . . . . . . . . . . . . . . . . . . . . . . . . . . . . . . Targets Rammed . | . . . . . . . . . . . . . . . . . . . . . . . . . . . . . . . Kicked . | . . . . . . . . . . . . . . . . . . . . . . . . . . . . . . . Crushed . | . . . . . . . . . . . . . . . . . . . . . . . . . . . . . . . Highest Temperature 389 | . 389 78 198 196 . 199 287 95 . . . . . . 7 11 . 234 83 . 144 . 198 232 . 301 23 266 . 105 Average Temperature 93 | . 233 37 91 87 . 133 86 32 . . . . . . 5 4 . 99 50 . 86 . 102 105 . 64 11 127 . 43 Received Heat Transfer 1028 | . 213 15 48 30 . 225 207 135 . . . . 9 . 18 . . . . . . . 36 . . 24 9 20 12 27 Effects 8 | . 6 . . . . . 2 . . . . . . . . . . . . . . . . . . . . . . . Shutdowns 1 | . 1 . . . . . . . . . . . . . . . . . . . . . . . . . . . . . Interference 6 | . 4 . . . . . 2 . . . . . . . . . . . . . . . . . . . . . . . Matter Decay 1 | . 1 . . . . . . . . . . . . . . . . . . . . . . . . . . . . . Siege Activations . | . . . . . . . . . . . . . . . . . . . . . . . . . . . . . . . Robots Corrupted 5 | . 1 . . . . . . . . . . . . . . . . . . . . . . . . . . . 3 1 Combat Hostiles 2 | . 1 . . . . . . . . . . . . . . . . . . . . . . . . . . . . 1 Parts Fried 27 | . 2 . 1 . . . . . . . . . . . . . . 7 2 . . 1 1 . . . . . 12 1 Impact Corruptions 31 | . . . . . . . . . . . . . . . . 2 . 11 11 . . 5 2 . . . . . . . Robots Melted . | . . . . . . . . . . . . . . . . . . . . . . . . . . . . . . . Combat Hostiles . | . . . . . . . . . . . . . . . . . . . . . . . . . . . . . . . Parts Melted 7 | . 1 . 2 1 . 3 . . . . . . . . . . . . . . . . . . . . . . . . Heat Transferred 4683 | . 472 50 1260 1369 . 851 581 . . . . . . . . 100 . . . . . . . . . . . . . . Parts Sabotaged . | . . . . . . . . . . . . . . . . . . . . . . . . . . . . . . . Parts Stolen . | . . . . . . . . . . . . . . . . . . . . . . . . . . . . . . . Parts Stripped . | . . . . . . . . . . . . . . . . . . . . . . . . . . . . . . . Power Chain Reactions 8 | . 1 1 2 . . . . . . . . . . . 1 2 . . . . . . . . . . . . 1 . Missiles Intercepted . | . . . . . . . . . . . . . . . . . . . . . . . . . . . . . . . Alert | -11 -10 -10 -9 -9 -9 -8 -8 -8 -7 -7 -7 -7 -7 -7 -6 -6 -6 -6 -6 -6 -6 -5 -5 -5 -5 -5 -5 -5 -5 -4 ------- Run | Scr Mat Min Mat Min Exi Min Mat Sto Fac Was Fac Low Low Zio Pro Fac Was Fac Low Low Dat Pro Fac Was Fac Ext Cet Arc Hub Fac Peak Influence 1842 | . 213 156 363 475 . 110 403 359 247 129 289 . . . . 196 60 133 . . . . 331 202 878 948 1007 577 1842 995 Initial 852 | . . 82 60 141 . . 42 169 163 86 81 . . . . 63 12 42 . . . . 44 61 131 429 492 402 201 852 Average 296 | . 89 138 204 298 . 73 230 235 198 113 184 . . . . 90 43 48 . . . . 159 144 468 728 786 531 993 871 Maximum Alert Level 5 | . 1 . 1 2 . . 2 1 1 . 1 . . . . . . . . . . . 1 1 3 3 3 2 5 3 Low Security (%) 54 | 100 96 100 44 4 . 100 36 38 47 100 56 . . . . 100 100 100 . . . . 84 79 6 . . . . . Level 1 24 | . 3 . 55 92 . . 58 61 52 . 43 . . . . . . . . . . . 15 20 47 . . . 13 . Level 2 6 | . . . . 3 . . 4 . . . . . . . . . . . . . . . . . 24 41 36 100 14 . Level 3 13 | . . . . . . . . . . . . . . . . . . . . . . . . . 21 58 63 . 30 100 Level 4 . | . . . . . . . . . . . . . . . . . . . . . . . . . . . . . 16 . Level 5 . | . . . . . . . . . . . . . . . . . . . . . . . . . . . . . 23 . High Security . | . . . . . . . . . . . . . . . . . . . . . . . . . . . . . . . Max Security . | . . . . . . . . . . . . . . . . . . . . . . . . . . . . . . . Squads Dispatched 30 | . . . 3 . . . 1 . . . 3 . . . . 4 . 3 . . . . 4 . 4 . . . 5 3 Investigation 7 | . . . 1 . . . . . . . 1 . . . . . . 1 . . . . 4 . . . . . . . Extermination 6 | . . . . . . . . . . . . . . . . 1 . 2 . . . . . . 1 . . . . 2 Reinforcement 15 | . . . 2 . . . 1 . . . 2 . . . . 2 . . . . . . . . 3 . . . 5 . Assault . | . . . . . . . . . . . . . . . . . . . . . . . . . . . . . . . Garrison 2 | . . . . . . . . . . . . . . . . 1 . . . . . . . . . . . . . 1 Intercept . | . . . . . . . . . . . . . . . . . . . . . . . . . . . . . . . Searches Triggered . | . . . . . . . . . . . . . . . . . . . . . . . . . . . . . . . Data Miner Redirects 2 | . . . . . . . . . . . . . . . . . . . . . . . 2 . . . . . . . Construction Impeded 1 | . . . 1 . . . . . . . . . . . . . . . . . . . . . . . . . . . Haulers Reinforced 4 | . . . . . . . . . . . . . . . . 1 . . . . . . . . 2 . . . 1 . Active Scanning Responses . | . . . . . . . . . . . . . . . . . . . . . . . . . . . . . . . Cargo Convoy Interrupts . | . . . . . . . . . . . . . . . . . . . . . . . . . . . . . . . Stealth | -11 -10 -10 -9 -9 -9 -8 -8 -8 -7 -7 -7 -7 -7 -7 -6 -6 -6 -6 -6 -6 -6 -5 -5 -5 -5 -5 -5 -5 -5 -4 --------- Run | Scr Mat Min Mat Min Exi Min Mat Sto Fac Was Fac Low Low Zio Pro Fac Was Fac Low Low Dat Pro Fac Was Fac Ext Cet Arc Hub Fac Distress Signals 21 | . 2 1 . 1 . . 2 3 1 . . . . . . . . . . . . . 2 . 1 1 2 . 5 . Communications Jammed . | . . . . . . . . . . . . . . . . . . . . . . . . . . . . . . . Distress Signals . | . . . . . . . . . . . . . . . . . . . . . . . . . . . . . . . Times Spotted 271 | . 15 4 17 18 . 7 23 11 5 10 9 2 6 . 4 9 5 5 . 6 . 4 19 7 11 16 15 3 31 9 Peak Tracking Total 15 | . 7 2 6 4 . 6 6 4 4 5 6 2 5 . 2 2 5 2 . 6 . 3 8 5 4 5 5 2 15 4 Tactical Retreats 23 | . 1 . . . . 1 2 . . 1 3 . 4 . 2 . . 1 . 1 . . 5 1 . . . . . 1 Traps | -11 -10 -10 -9 -9 -9 -8 -8 -8 -7 -7 -7 -7 -7 -7 -6 -6 -6 -6 -6 -6 -6 -5 -5 -5 -5 -5 -5 -5 -5 -4 ------- Run | Scr Mat Min Mat Min Exi Min Mat Sto Fac Was Fac Low Low Zio Pro Fac Was Fac Low Low Dat Pro Fac Was Fac Ext Cet Arc Hub Fac Traps Triggered 12 | . . . . . . . . 3 1 . 1 . . . . 1 . 2 . . . . 3 . . 1 . . . . Indirectly . | . . . . . . . . . . . . . . . . . . . . . . . . . . . . . . . Trap Hack Attempts . | . . . . . . . . . . . . . . . . . . . . . . . . . . . . . . . Triggered . | . . . . . . . . . . . . . . . . . . . . . . . . . . . . . . . Disarmed . | . . . . . . . . . . . . . . . . . . . . . . . . . . . . . . . Reprogrammed . | . . . . . . . . . . . . . . . . . . . . . . . . . . . . . . . Reused 3 | . . . . . . 1 . . . . . . . . 2 . . . . . . . . . . . . . . . Traps Extracted . | . . . . . . . . . . . . . . . . . . . . . . . . . . . . . . . Installed 3 | . . . . . . 1 . . . . . . . . 2 . . . . . . . . . . . . . . . Triggered 3 | . . . . . . 1 . . . . . . . . 2 . . . . . . . . . . . . . . . Most Traps Carried 6 | . . . . 4 4 1 . . . . . . 6 6 2 . . . . . . . . . . . . . . . Machines | -11 -10 -10 -9 -9 -9 -8 -8 -8 -7 -7 -7 -7 -7 -7 -6 -6 -6 -6 -6 -6 -6 -5 -5 -5 -5 -5 -5 -5 -5 -4 ---------- Run | Scr Mat Min Mat Min Exi Min Mat Sto Fac Was Fac Low Low Zio Pro Fac Was Fac Low Low Dat Pro Fac Was Fac Ext Cet Arc Hub Fac Machines Disabled 31 | . . 1 . 1 . . 3 4 . . . . . . . . . . . . . . 1 . 2 1 1 1 16 . Max in Single Turn 14 | . . 1 . 1 . . 3 1 . . . . . . . . . . . . . . 1 . . 1 . . 14 . Garrison Access 4 | . . . . . . . . . 1 . . . . . . 1 . . . . . . 2 . . . . . . . Network Hub 1 | . . . . . . . . . . . . . . . . . . . . . . . . . . . . . 1 . Machines Sabotaged . | . . . . . . . . . . . . . . . . . . . . . . . . . . . . . . . Overloaded Fab Kills . | . . . . . . . . . . . . . . . . . . . . . . . . . . . . . . . Hacking | -11 -10 -10 -9 -9 -9 -8 -8 -8 -7 -7 -7 -7 -7 -7 -6 -6 -6 -6 -6 -6 -6 -5 -5 -5 -5 -5 -5 -5 -5 -4 --------- Run | Scr Mat Min Mat Min Exi Min Mat Sto Fac Was Fac Low Low Zio Pro Fac Was Fac Low Low Dat Pro Fac Was Fac Ext Cet Arc Hub Fac Machines Accessed 72 | . . . 4 1 1 . 3 1 5 . 2 1 1 . 1 13 . 10 . . 4 . 20 . 3 1 1 . . . Terminals 45 | . . . 3 1 . . 3 1 1 . 2 . . . 1 9 . 9 . . . . 12 . 1 1 1 . . . Fabricators 5 | . . . . . . . . . 1 . . . . . . . . . . . . . 4 . . . . . . . Repair Stations 5 | . . . . . . . . . 1 . . . . . . 1 . 1 . . . . 2 . . . . . . . Recycling Units . | . . . . . . . . . . . . . . . . . . . . . . . . . . . . . . . Scanalyzers 4 | . . . 1 . . . . . 1 . . . . . . 1 . . . . . . . . 1 . . . . . Garrison Access 6 | . . . . . . . . . 1 . . . . . . 2 . . . . . . 2 . 1 . . . . . Total Hacks 188 | . . . 11 2 1 . 7 1 11 . 5 1 1 . 1 31 . 27 . . 29 . 47 . 11 1 1 . . . Successful 115 | . . . 6 1 1 . 6 1 9 . 2 1 1 . 1 13 . 16 . . 29 . 25 . 2 . 1 . . . Failed 73 | . . . 5 1 . . 1 . 2 . 3 . . . . 18 . 11 . . . . 22 . 9 1 . . . . Catastrophic 12 | . . . . . . . . . . . . . . . . 4 . 2 . . . . 4 . 1 1 . . . . Database Lockouts . | . . . . . . . . . . . . . . . . . . . . . . . . . . . . . . . Manual 59 | . . . . . 1 . 4 . 2 . 3 . . . . 11 . 15 . . . . 22 . . . 1 . . . Terminals 109 | . . . 8 2 . . 7 1 4 . 5 . . . 1 23 . 25 . . . . 30 . 1 1 1 . . . Fabricators 11 | . . . . . . . . . 1 . . . . . . . . . . . . . 10 . . . . . . . Repair Stations 10 | . . . . . . . . . 2 . . . . . . 2 . 2 . . . . 4 . . . . . . . Recycling Units . | . . . . . . . . . . . . . . . . . . . . . . . . . . . . . . . Scanalyzers 15 | . . . 3 . . . . . 2 . . . . . . 3 . . . . . . . . 7 . . . . . Garrison Access 11 | . . . . . . . . . 2 . . . . . . 3 . . . . . . 3 . 3 . . . . . Terminal Hacks 69 | . . . 3 1 1 . 2 1 2 . 1 1 1 . 1 6 . 12 . . 29 . 6 . 1 . 1 . . . Record 12 | . . . . . . . . . . . . . . . 1 . . . . . 11 . . . . . . . . . Part Schematic 15 | . . . . . . . . . . . 1 . . . . . . 3 . . 10 . 1 . . . . . . . Robot Schematic 7 | . . . . . . . . . . . . . . . . 1 . 1 . . 5 . . . . . . . . . Robot Analysis 1 | . . . . . . . . . . . . . . . . 1 . . . . . . . . . . . . . . Prototype ID Bank 7 | . . . 1 . . . . . 1 . . . . . . 1 . . . . 3 . 1 . . . . . . . Open Door 4 | . . . . . . . . . . . . 1 1 . . . . . . . . . . . 1 . 1 . . . Branch Access Points 1 | . . . . . . . . . . . . . . . . . . 1 . . . . . . . . . . . . Emergency Access Points 1 | . . . 1 . . . . . . . . . . . . . . . . . . . . . . . . . . . Terminal Index 1 | . . . . . . . . . . . . . . . . . . 1 . . . . . . . . . . . . Repair Station Index 1 | . . . . . . . . . . . . . . . . . . 1 . . . . . . . . . . . . Alert Level 1 | . . . . . . . . 1 . . . . . . . . . . . . . . . . . . . . . . Locate Traps 3 | . . . . . . . 1 . . . . . . . . 1 . . . . . . 1 . . . . . . . Recall Extermination 1 | . . . . . . . . . . . . . . . . . . 1 . . . . . . . . . . . . Hauler Manifests 1 | . . . . . . . . . . . . . . . . 1 . . . . . . . . . . . . . . Zone Layout 12 | . . . 1 1 . . 1 . 1 . . . . . . 1 . 4 . . . . 3 . . . . . . . EX-Prototype ID Bank 1 | . . . . . 1 . . . . . . . . . . . . . . . . . . . . . . . . . Fabricator Hacks 6 | . . . . . . . . . 1 . . . . . . . . . . . . . 5 . . . . . . . Network Status 1 | . . . . . . . . . . . . . . . . . . . . . . . 1 . . . . . . . Load Schematic 3 | . . . . . . . . . . . . . . . . . . . . . . . 3 . . . . . . . Build 2 | . . . . . . . . . 1 . . . . . . . . . . . . . 1 . . . . . . . Repair Station Hacks 7 | . . . . . . . . . 2 . . . . . . 2 . . . . . . 3 . . . . . . . Scan Component 4 | . . . . . . . . . 1 . . . . . . 1 . . . . . . 2 . . . . . . . Repair 3 | . . . . . . . . . 1 . . . . . . 1 . . . . . . 1 . . . . . . . Recycling Unit Hacks . | . . . . . . . . . . . . . . . . . . . . . . . . . . . . . . . Scanalyzer 7 | . . . 3 . . . . . 2 . . . . . . 1 . . . . . . . . 1 . . . . . Insert Component 4 | . . . 1 . . . . . 1 . . . . . . 1 . . . . . . . . 1 . . . . . Analyze 3 | . . . 2 . . . . . 1 . . . . . . . . . . . . . . . . . . . . . Garrison Access Hacks 4 | . . . . . . . . . 1 . . . . . . 1 . . . . . . 2 . . . . . . . Seal Access 4 | . . . . . . . . . 1 . . . . . . 1 . . . . . . 2 . . . . . . . Unauthorized Hacks 22 | . . . . . . . 4 . 1 . 1 . . . . 3 . 4 . . . . 9 . . . . . . . Terminals 20 | . . . . . . . 4 . 1 . 1 . . . . 3 . 4 . . . . 7 . . . . . . . Track 3 | . . . . . . . 1 . . . . . . . . . . . . . . . 2 . . . . . . . Assimilate 3 | . . . . . . . . . . . . . . . . . . 2 . . . . 1 . . . . . . . Botnet 14 | . . . . . . . 3 . 1 . 1 . . . . 3 . 2 . . . . 4 . . . . . . . Fabricators 2 | . . . . . . . . . . . . . . . . . . . . . . . 2 . . . . . . . Download 1 | . . . . . . . . . . . . . . . . . . . . . . . 1 . . . . . . . Recompile 1 | . . . . . . . . . . . . . . . . . . . . . . . 1 . . . . . . . Repair Stations . | . . . . . . . . . . . . . . . . . . . . . . . . . . . . . . . Recycling Units . | . . . . . . . . . . . . . . . . . . . . . . . . . . . . . . . Scanalyzers . | . . . . . . . . . . . . . . . . . . . . . . . . . . . . . . . Garrison Access . | . . . . . . . . . . . . . . . . . . . . . . . . . . . . . . . Data Cores Recovered 2 | . . . . . . . . . . . . . . . . 1 . 1 . . . . . . . . . . . . Used 1 | . . . . . . . . . . . . . . . . . . 1 . . . . . . . . . . . . Hacking Detections 46 | . . . 4 . . . 2 1 2 . 2 . . . . 9 . 6 . . . . 16 . 3 1 . . . . Full Trace Events 3 | . . . 1 . . . . . . . . . . . . . . 1 . . . . 1 . . . . . . . Feedback Events . | . . . . . . . . . . . . . . . . . . . . . . . . . . . . . . . Feedback Blocked . | . . . . . . . . . . . . . . . . . . . . . . . . . . . . . . . Robot Schematics Acquired 10 | . . . . . . . . . . . . . . 3 . 1 . 1 . . 5 . . . . . . . . . Robots Built . | . . . . . . . . . . . . . . . . . . . . . . . . . . . . . . . Authchips . | . . . . . . . . . . . . . . . . . . . . . . . . . . . . . . . Time . | . . . . . . . . . . . . . . . . . . . . . . . . . . . . . . . Total Robot Build Rating . | . . . . . . . . . . . . . . . . . . . . . . . . . . . . . . . Part Schematics Acquired 32 | . . . 1 . . . . . 1 . 1 . . 15 . . . 3 . . 10 . 1 . . . . . . . Parts Built 3 | . . . . . . . . . 2 . . . . . . . . . . . . . 1 . . . . . . . Authchips 1 | . . . . . . . . . . . . . . . . . . . . . . . 1 . . . . . . . Time 181 | . . . . . . . . . 47 . . . . . . . . . . . . . 134 . . . . . . . Total Part Build Rating 14 | . . . . . . . . . 10 . . . . . . . . . . . . . 4 . . . . . . . Parts Repaired 3 | . . . . . . . . . 1 . . . . . . 1 . . . . . . 1 . . . . . . . Time 116 | . . . . . . . . . 26 . . . . . . 20 . . . . . . 70 . . . . . . . Parts Recycled . | . . . . . . . . . . . . . . . . . . . . . . . . . . . . . . . Recycled Matter . | . . . . . . . . . . . . . . . . . . . . . . . . . . . . . . . Retrieved Matter . | . . . . . . . . . . . . . . . . . . . . . . . . . . . . . . . Retrieved Components . | . . . . . . . . . . . . . . . . . . . . . . . . . . . . . . . Parts Scanalyzed 3 | . . . 1 . . . . . 1 . . . . . . . . . . . . . . . 1 . . . . . Part Schematics Acquired 2 | . . . 1 . . . . . 1 . . . . . . . . . . . . . . . . . . . . . Parts Damaged . | . . . . . . . . . . . . . . . . . . . . . . . . . . . . . . . Bothacking | -11 -10 -10 -9 -9 -9 -8 -8 -8 -7 -7 -7 -7 -7 -7 -6 -6 -6 -6 -6 -6 -6 -5 -5 -5 -5 -5 -5 -5 -5 -4 ------------ Run | Scr Mat Min Mat Min Exi Min Mat Sto Fac Was Fac Low Low Zio Pro Fac Was Fac Low Low Dat Pro Fac Was Fac Ext Cet Arc Hub Fac Used RIF Installer . | . . . . . . . . . . . . . . . . . . . . . . . . . . . . . . . Robots Hacked . | . . . . . . . . . . . . . . . . . . . . . . . . . . . . . . . Non-combat . | . . . . . . . . . . . . . . . . . . . . . . . . . . . . . . . Combat . | . . . . . . . . . . . . . . . . . . . . . . . . . . . . . . . Robot Hacks Applied . | . . . . . . . . . . . . . . . . . . . . . . . . . . . . . . . Relay Couplers Released . | . . . . . . . . . . . . . . . . . . . . . . . . . . . . . . . Fabnet Peak Effective % . | . . . . . . . . . . . . . . . . . . . . . . . . . . . . . . . Robots Rewired 3 | . . . . . . . . . . . . . . . . . . . . . . . . . . 3 . . . . Allies Hacked . | . . . . . . . . . . . . . . . . . . . . . . . . . . . . . . . Hacks Repelled . | . . . . . . . . . . . . . . . . . . . . . . . . . . . . . . . Allies | -11 -10 -10 -9 -9 -9 -8 -8 -8 -7 -7 -7 -7 -7 -7 -6 -6 -6 -6 -6 -6 -6 -5 -5 -5 -5 -5 -5 -5 -5 -4 -------- Run | Scr Mat Min Mat Min Exi Min Mat Sto Fac Was Fac Low Low Zio Pro Fac Was Fac Low Low Dat Pro Fac Was Fac Ext Cet Arc Hub Fac Total Allies 67 | . . . . 2 . . . . . 19 . . . . . . . 2 . . . 1 . 19 . 19 5 . . . Largest Group 19 | . . . . 2 . . . . . 19 1 . . . . . . 1 1 1 . 1 . 18 15 19 19 12 12 . Highest-Rated Group 1027 | . . . . 49 . . . . . 465 26 . . . . . . 10 10 10 . 96 . 638 563 734 1027 676 676 . Highest-Rated Ally 159 | . . . . 31 . . . . . 35 26 . . . . . . 10 10 10 . 96 . 50 50 159 146 96 96 . Total Orders 1 | . . . . . . . . . . . . . . . . . . 1 . . . . . . . . . . . . RETURN 1 | . . . . . . . . . . . . . . . . . . 1 . . . . . . . . . . . . Ally Attacks 567 | . . . . 16 . . . . . 111 3 8 . . . . . . . . . 12 . 72 100 84 75 21 65 . Total Damage 16402 | . . . . 148 . . . . . 3989 37 321 . . . . . . . . . 476 . 1766 2137 2186 3043 735 1564 . Kills 80 | . . . . 3 . . . . . 11 . 3 . . . . . . . . . 3 . 6 14 11 16 4 9 . Allies Corrupted 6 | . . . . . . . . . . . . . . . . . . 1 . . . . . . 1 . . . 4 . Allies Melted 1 | . . . . . . . . . . . . . . . . . . . . . . . . . 1 . . . . . Turrets Deployed 2 | . . . . . . . . . . . . 1 . . . . . . . . . . . . . . 1 . . . Intel | -11 -10 -10 -9 -9 -9 -8 -8 -8 -7 -7 -7 -7 -7 -7 -6 -6 -6 -6 -6 -6 -6 -5 -5 -5 -5 -5 -5 -5 -5 -4 ------- Run | Scr Mat Min Mat Min Exi Min Mat Sto Fac Was Fac Low Low Zio Pro Fac Was Fac Low Low Dat Pro Fac Was Fac Ext Cet Arc Hub Fac Robot Analysis Total 1 | . . . . . . . . . . . . . . . . 1 . . . . . . . . . . . . . . Derelict Logs Recovered 12 | . . 1 . 1 . . . . . . . 2 1 1 1 . . . 3 1 . 1 . . . . . . . . Drone Launches 1 | . . . . . . . . . . . . . . . . . . 1 . . . . . . . . . . . . Drone Recoveries 1 | . . . . . . . . . . . . . . . . . . 1 . . . . . . . . . . . . Exploration | -11 -10 -10 -9 -9 -9 -8 -8 -8 -7 -7 -7 -7 -7 -7 -6 -6 -6 -6 -6 -6 -6 -5 -5 -5 -5 -5 -5 -5 -5 -4 ------------- Run | Scr Mat Min Mat Min Exi Min Mat Sto Fac Was Fac Low Low Zio Pro Fac Was Fac Low Low Dat Pro Fac Was Fac Ext Cet Arc Hub Fac Turns Passed 12443 | 40 287 197 397 590 341 93 699 704 260 145 278 466 263 310 292 1032 44 1035 491 178 287 505 1164 211 301 563 323 84 246 617 Spaces Moved 15709 | 42 180 138 224 463 237 40 410 428 572 332 544 828 458 651 442 1876 85 1791 923 338 96 788 1519 345 528 579 219 109 233 291 Core 28 | 24 . . . . . . . . . . . . . . . . . . . . . . . . . . . . 4 . Treads 164 | . . . . . . . . . . . . . . . . . . . . . . . . . . . . . . 164 Legs . | . . . . . . . . . . . . . . . . . . . . . . . . . . . . . . . Wheels 2129 | 18 180 138 215 463 237 40 410 428 . . . . . . . . . . . . . . . . . . . . . . Hover 12104 | . . . 9 . . . . . . . 164 828 458 651 442 1876 85 1791 923 338 96 788 1519 345 528 579 219 109 229 127 Flight 1284 | . . . . . . . . . 572 332 380 . . . . . . . . . . . . . . . . . . . Fastest Speed 29 | 50 90 110 95 95 105 105 105 86 29 29 29 45 45 45 45 38 38 38 50 50 42 42 35 34 34 34 30 30 30 65 Average Speed 51 | 67 109 121 111 103 105 106 106 104 29 29 34 45 45 45 45 41 38 38 50 50 49 42 41 39 34 34 32 30 84 116 Slowest Speed 650 | 90 125 125 220 105 105 125 110 110 29 29 46 46 45 45 45 102 38 102 50 50 50 42 106 105 34 34 98 30 650 200 Overloaded Moves . | . . . . . . . . . . . . . . . . . . . . . . . . . . . . . . . Propulsion Burnouts . | . . . . . . . . . . . . . . . . . . . . . . . . . . . . . . . Robots Hopped 3 | . . . . . . . . . 2 . . 1 . . . . . . . . . . . . . . . . . . Cave-ins Triggered 1 | . . . . . . . . . . . . . . . . . . . . . . . 1 . . . . . . . Exploration Rate (%) 52 | 3 29 35 32 75 62 9 36 66 21 92 16 70 54 80 55 43 89 45 90 52 69 83 38 84 12 71 79 88 32 9 Regions Visited 30 Branch Regions 17 Pre-discovered Areas 5 | . . . . 1 . . . . . . . . . 1 . . . . 1 1 1 . . . . . . . . . Known Exits Taken 16 | . . . . . . . . 1 . . 1 1 1 1 1 . . 1 1 1 1 1 . . 1 1 1 1 1 . Unknown Exits Taken 8 | 1 1 1 1 1 1 1 1 . . . . . . . . . . . . . . . . . . . . . . . Scrap Searched 17 | . . . . 1 . . . . . . . 4 1 3 2 . . . 3 2 . 1 . . . . . . . . Spaces Dug 174 | . . . . . . . . 5 13 . 19 19 1 . 5 28 . 34 2 1 . 2 28 . . . . . 17 . Terrain Destroyed 703 | . 6 3 5 . . . 36 12 13 . 19 19 1 . 34 37 27 34 2 1 . 42 49 90 . . 16 . 239 18 Melee 161 | . . . . . . . . 5 13 . 19 19 1 . 5 28 . 34 2 1 . 2 28 . . . . . 4 . Projectile 14 | . . . . . . . . . . . . . . . . . . . . . . . . . . . . . 3 11 AOE 528 | . 6 3 5 . . . 36 7 . . . . . . 29 9 27 . . . . 40 21 90 . . 16 . 232 7 Terrain Rammed . | . . . . . . . . . . . . . . . . . . . . . . . . . . . . . . . Walls Destroyed . | . . . . . . . . . . . . . . . . . . . . . . . . . . . . . . . Machines Disabled . | . . . . . . . . . . . . . . . . . . . . . . . . . . . . . . . Actions | -11 -10 -10 -9 -9 -9 -8 -8 -8 -7 -7 -7 -7 -7 -7 -6 -6 -6 -6 -6 -6 -6 -5 -5 -5 -5 -5 -5 -5 -5 -4 --------- Run | Scr Mat Min Mat Min Exi Min Mat Sto Fac Was Fac Low Low Zio Pro Fac Was Fac Low Low Dat Pro Fac Was Fac Ext Cet Arc Hub Fac Total 19124 | 52 234 157 307 523 330 62 588 607 641 380 596 883 510 666 523 2033 91 2062 940 344 334 947 1975 407 628 900 459 159 259 527 Wait 2415 | . 4 10 26 15 88 . 86 75 30 46 12 28 44 1 66 72 . 211 8 6 235 149 366 46 78 253 217 51 3 189 Move 15677 | 41 179 137 223 462 236 39 409 427 569 331 543 825 457 650 441 1876 84 1790 922 337 95 787 1519 344 527 578 218 108 232 291 Hop 2 | . . . . . . . . . 1 . . 1 . . . . . . . . . . . . . . . . . . Pick Up 113 | 5 13 3 11 9 3 1 14 10 1 . 4 2 6 5 . 4 1 2 . . . . 7 3 2 1 1 . 1 4 Fast Attach 51 | 2 . . 1 . . 1 3 5 3 1 . 3 . . . 6 . 2 . . 1 . 11 . 3 1 2 . 1 5 Attach 60 | 4 5 2 6 3 . 2 4 4 7 . 2 . . . 1 1 1 2 . . . . 4 . . . 2 . 2 8 Detach 7 | . . . 2 . . . . . . . . . . . 1 . . 1 . . . . . . . . . . 2 1 Swap 75 | . 3 . 2 2 . 1 6 15 . . 1 . 1 4 . 7 1 3 1 . 1 2 8 4 1 4 3 . 2 3 Drop 111 | . 4 . 2 5 3 2 12 11 12 2 6 4 . 5 2 5 . 4 1 . 2 . 12 1 5 3 6 . . 2 Fire 311 | . 26 5 34 27 . 15 54 35 . . . . . . 5 19 4 3 3 . . 4 5 9 . 32 7 . 7 17 Melee 278 | . . . . . . . . 25 18 . 28 20 2 1 5 43 . 44 5 1 . 5 43 . 12 7 3 . 9 7 Ram . | . . . . . . . . . . . . . . . . . . . . . . . . . . . . . . . Kick . | . . . . . . . . . . . . . . . . . . . . . . . . . . . . . . . Crush . | . . . . . . . . . . . . . . . . . . . . . . . . . . . . . . . Escape Stasis . | . . . . . . . . . . . . . . . . . . . . . . . . . . . . . . . Rewire 21 | . . . . . . . . . . . . . . . . . . . . . . . . . . 21 . . . . Trap 3 | . . . . . . 1 . . . . . . . . 2 . . . . . . . . . . . . . . . Miscellaneous . | . . . . . . . . . . . . . . . . . . . . . . . . . . . . . . . Route ------- -11/Scrapyard -10/Materials -10/Mines -9/Materials -9/Mines (discovered 3 exits: *Mat x2 / *Exi) -9/Exiles -8/Mines -8/Materials (discovered 2 exits: *Fac / *Sto) -8/Storage -7/Factory (discovered 2 exits: *Fac x2) -7/Waste -7/Factory -7/Lower Caves -7/Lower Caves -7/Zion -6/Proximity Caves -6/Factory (discovered 5 exits: *Fac x3 / *Low x2) -6/Waste -6/Factory (discovered 3 exits: *Fac / *Low x2) -6/Lower Caves -6/Lower Caves -6/Data Miner -5/Proximity Caves -5/Factory (discovered 6 exits: *Fac x3 / *Upp x2 / Ext) -5/Waste -5/Factory -5/Extension (discovered 2 exits: *Fac / *Cet) -5/Cetus (discovered 2 exits: *Fac / *Arc) -5/Archives (discovered 3 exits: *Fac / *Hub x2) -5/Hub_04(d) (discovered 2 exits: *Fac x2) -4/Factory (discovered 1 exit: *Upp) History --------- Turn | Location | Event 8 | -11/Scrapyard | Discovered new exit (range 16) 41 | -11/Scrapyard | Entered Materials 283 | -10/Materials | Lost 4 parts (1n3w) 310 | -10/Materials | Build established: Mutant 312 | -10/Materials | Discovered new exit (range 14) 328 | -10/Materials | Entered Mines 358 | -10/Mines | Learned Materials trap positions 429 | -10/Mines | Discovered new exit (range 11) 458 | -10/Mines | Assembled infested the area 463 | -10/Mines | Assisted by a Guerilla fighting off Assembled 525 | -10/Mines | Entered Materials 525 | -9/Materials | Evolved 2 slots: Utility x2 526 | -9/Materials | Loaded intel: 14 trap records 861 | -9/Materials | Discovered new exit (range 6) 922 | -9/Materials | Entered Mines 937 | -9/Mines | Discovered new exit (range 6) 981 | -9/Mines | Found a hidden stash of uninstalled traps 1002 | -9/Mines | Discovered new exit (range 6) 1029 | -9/Mines | Build established: Scavenger-Mutant 1388 | -9/Mines | Learned location of Storage (-8) 1430 | -9/Mines | Joined a pair of Derelicts in attacking an 0b10 outpost 1507 | -9/Mines | Deemed a non-threat by the Exiles lab entrance 1507 | -9/Mines | Discovered new exit (range 5) 1512 | -9/Mines | Entered Exiles 1542 | -9/Exiles | Met 8R-AWN 1560 | -9/Exiles | Met EX-HEX 1589 | -9/Exiles | Met EX-BIN 1610 | -9/Exiles | Aligned with FarCom system 1611 | -9/Exiles | Given EX-Vault access code 1636 | -9/Exiles | Opened EX-Vault 1643 | -9/Exiles | Found Deploy-a-Sentry 1645 | -9/Exiles | Found Deploy-a-Sentry 1647 | -9/Exiles | Found Deploy-a-Sentry 1663 | -9/Exiles | Build established: Mutant 1668 | -9/Exiles | Warned to stay clear of 0b10 Research branches 1684 | -9/Exiles | Exiles lab attacked by MAIN.C 1750 | -9/Exiles | Discovered new exit (range 14) 1853 | -9/Exiles | Left Exiles lab with Deploy-a-Sentry 1853 | -9/Exiles | Entered Mines 1878 | -8/Mines | Core integrity fell below 50% 1895 | -8/Mines | Lost 3 parts (1n1u1w) 1941 | -8/Mines | Discovered new exit (range 5) 1946 | -8/Mines | Entered Materials 1946 | -8/Materials | Evolved 2 slots: Propulsion x1, Utility x1 2442 | -8/Materials | Discovered new exit (range 12) 2443 | -8/Materials | Discovered new exit (range 5) 2645 | -8/Materials | Entered Storage 3341 | -8/Storage | Discovered new exit (range 6) 3346 | -8/Storage | Identified exit to Factory 3349 | -8/Storage | Entered Factory 3349 | -7/Factory | Evolved 2 slots: Utility x2 3363 | -7/Factory | Found Scrap Engine 3469 | -7/Factory | Discovered new exit (range 7) 3471 | -7/Factory | Identified exit to Factory 3526 | -7/Factory | Fabricated Nuclear Pulse Thruster? 3542 | -7/Factory | Repaired Seismic Detector 3552 | -7/Factory | Discovered exit to Factory (range 6) 3609 | -7/Factory | Sucked down chute 3609 | -7/Factory | Entered Waste 3614 | -7/Waste | Spotted C-40 Crusher 3628 | -7/Waste | Spotted C-40 Crusher 3629 | -7/Waste | Spotted C-40 Crusher 3629 | -7/Waste | Spotted C-40 Crusher 3630 | -7/Waste | Spotted C-40 Crusher 3638 | -7/Waste | Build established: Scout 3646 | -7/Waste | Warlord forces began an assault 3684 | -7/Waste | Spotted C-40 Crusher 3695 | -7/Waste | Allies destroyed C-40 Crusher 3704 | -7/Waste | Allies destroyed C-40 Crusher 3708 | -7/Waste | Allies destroyed C-40 Crusher 3714 | -7/Waste | Allies destroyed C-40 Crusher 3726 | -7/Waste | Allies destroyed C-40 Crusher 3746 | -7/Waste | Discovered new exit (range 10) 3750 | -7/Waste | Identified exit to Factory 3754 | -7/Waste | Entered Factory 3754 | -7/Factory | Accompanied by 1 ally 4030 | -7/Factory | Discovered new exit (range 5) 4032 | -7/Factory | Identified exit to Lower Caves 4032 | -7/Factory | Entered Lower Caves 4204 | -7/Lower Caves | Encountered a Warlord checkpoint 4301 | -7/Lower Caves | DAS Turret deployed 4321 | -7/Lower Caves | Build established: Hacker-Mutant 4362 | -7/Lower Caves | Learned location of 1 exit from Factory 4463 | -7/Lower Caves | Discovered new exit (range 15) 4470 | -7/Lower Caves | Identified exit to Lower Caves 4478 | -7/Lower Caves | Learned Factory stockpile data 4498 | -7/Lower Caves | Entered another Lower Caves area 4671 | -7/Lower Caves | Discovered new exit (range 14) 4690 | -7/Lower Caves | Identified exit to Zion 4761 | -7/Lower Caves | Entered Zion 4782 | -7/Zion | Discovered new exit (range 16) 4792 | -7/Zion | Given the Hacking Drone Bay 4793 | -7/Zion | Found Prototype Device 4794 | -7/Zion | Identified Hacking Drone Bay 4815 | -7/Zion | Learned Factory garrison access intel 4846 | -7/Zion | Found Prototype Special Weapon 4848 | -7/Zion | Found Prototype Special Weapon 4849 | -7/Zion | Found Prototype Special Weapon 4852 | -7/Zion | Found Prototype Special Weapon 4853 | -7/Zion | Identified RU-N14's Throwing Claymores (x4) 4916 | -7/Zion | Rebuked by Imprinter 4979 | -7/Zion | Learned Factory trap positions 5071 | -7/Zion | Identified exit to Proximity Caves 5071 | -7/Zion | Entered Proximity Caves 5188 | -6/Proximity Caves | Spotted B-75 Beast 5343 | -6/Proximity Caves | Attracted the attention of an 0b10 checkpoint 5363 | -6/Proximity Caves | Entered Factory 5363 | -6/Factory | Evolved 2 slots: Propulsion x1, Utility x1 5364 | -6/Factory | Identified exit to Factory 5365 | -6/Factory | Loaded intel: 77 trap records 5367 | -6/Factory | Loaded intel: 4 garrison access locations 5475 | -6/Factory | Garrison activated, responded to threat 5629 | -6/Factory | Repaired Aerolev Unit 5661 | -6/Factory | Discovered new exit (range 6) 5663 | -6/Factory | Identified exit to Lower Caves 5903 | -6/Factory | Discovered exit to Factory (range 5) 5951 | -6/Factory | Build established: Hacker-Scout 6292 | -6/Factory | Discovered exit to Lower Caves (range 5) 6325 | -6/Factory | Discovered exit to Factory (range 11) 6395 | -6/Factory | Manually triggered Chute Trap 6395 | -6/Factory | Sucked down chute 6395 | -6/Factory | Entered Waste 6404 | -6/Waste | Spotted C-40 Crusher 6409 | -6/Waste | Spotted C-40 Crusher 6410 | -6/Waste | EMP discharged 6410 | -6/Waste | Spotted C-40 Crusher 6414 | -6/Waste | Destroyed C-40 Crusher 6416 | -6/Waste | Spotted C-40 Crusher 6422 | -6/Waste | Spotted C-40 Crusher 6433 | -6/Waste | Discovered new exit (range 12) 6439 | -6/Waste | Identified exit to Factory 6439 | -6/Waste | Entered Factory 6853 | -6/Factory | Discovered exit to Factory (range 4) 6908 | -6/Factory | Build established: Hacker-Mutant 7308 | -6/Factory | Build established: Hacker-Scout 7474 | -6/Factory | Entered Lower Caves 7474 | -6/Lower Caves | Accompanied by 1 ally 7579 | -6/Lower Caves | Learned location of 1 exit from Factory 7691 | -6/Lower Caves | Discovered new exit (range 12) 7692 | -6/Lower Caves | Learned Factory interactive machine intel 7708 | -6/Lower Caves | Identified exit to Lower Caves 7763 | -6/Lower Caves | Build established: Hacker-Mutant 7965 | -6/Lower Caves | Entered another Lower Caves area 7965 | -6/Lower Caves | Accompanied by 1 ally 8130 | -6/Lower Caves | Discovered new exit (range 6) 8134 | -6/Lower Caves | Identified exit to Data Miner 8143 | -6/Lower Caves | Entered Data Miner 8143 | -6/Data Miner | Discovered new exit (range 7) 8153 | -6/Data Miner | Met Data Miner 8169 | -6/Data Miner | Learned location of Section 7 (-2) 8169 | -6/Data Miner | Acquired the access code to Warlord's prototype stash 8177 | -6/Data Miner | Received God Mode back door access code from Data Miner 8188 | -6/Data Miner | Identified exit to Proximity Caves 8430 | -6/Data Miner | Entered Proximity Caves 8665 | -5/Proximity Caves | Escorted by Enhanced Grunt 8876 | -5/Proximity Caves | Learned Factory stockpile data 8901 | -5/Proximity Caves | Discovered exit to Factory (range 5) 8935 | -5/Proximity Caves | Entered Factory 8935 | -5/Factory | Evolved 2 slots: Propulsion x1, Utility x1 8936 | -5/Factory | Identified exit to Extension 8937 | -5/Factory | Identified exit to Factory 8939 | -5/Factory | Loaded intel: 54 interactive machine locations 8992 | -5/Factory | Discovered new exit (range 2) 8992 | -5/Factory | Identified exit to Upper Caves 9111 | -5/Factory | Incoming investigation squad redirected 9220 | -5/Factory | Build established: Hacker-Scout 9297 | -5/Factory | Discovered exit to Upper Caves (range 14) 9336 | -5/Factory | Discovered exit to Factory (range 8) 9466 | -5/Factory | Repaired Imp. Airjet 9524 | -5/Factory | Discovered exit to Factory (range 7) 9572 | -5/Factory | Incoming investigation squad redirected 9647 | -5/Factory | Build established: Hacker-Mutant 9714 | -5/Factory | Crushed by falling debris 9860 | -5/Factory | Fabricated Cld. Airjet? 10029 | -5/Factory | Build established: Mutant 10099 | -5/Factory | Sucked down chute 10099 | -5/Factory | Entered Waste 10100 | -5/Waste | Met a frightened Derelict 10103 | -5/Waste | Spotted C-40 Crusher 10103 | -5/Waste | Spotted C-40 Crusher 10126 | -5/Waste | Spotted C-40 Crusher 10139 | -5/Waste | Spotted C-40 Crusher 10140 | -5/Waste | Spotted C-40 Crusher 10154 | -5/Waste | Destroyed C-40 Crusher 10207 | -5/Waste | Spotted C-40 Crusher 10215 | -5/Waste | Warlord forces began an assault 10219 | -5/Waste | Allies destroyed C-40 Crusher 10228 | -5/Waste | Discovered new exit (range 15) 10265 | -5/Waste | Allies destroyed C-40 Crusher 10269 | -5/Waste | Allies destroyed C-40 Crusher 10269 | -5/Waste | Allies destroyed C-40 Crusher 10279 | -5/Waste | Identified exit to Factory 10310 | -5/Waste | Entered Factory 10310 | -5/Factory | Accompanied by 15 allies 10433 | -5/Factory | Build established: Scout 10465 | -5/Factory | Discovered exit to Extension (range 5) 10611 | -5/Factory | Entered Extension 10611 | -5/Extension | Accompanied by 7 allies 10624 | -5/Extension | Rescued a captive Derelict 10625 | -5/Extension | Rescued a captive Derelict 10642 | -5/Extension | Rescued A7 10819 | -5/Extension | Spotted B-75 Beast 10829 | -5/Extension | Allies destroyed B-75 Beast 10831 | -5/Extension | Spotted B-75 Beast 10853 | -5/Extension | Allies destroyed B-75 Beast 10880 | -5/Extension | Rescued a captive Derelict 10880 | -5/Extension | Rescued a captive Derelict 10918 | -5/Extension | Build established: Mutant 10942 | -5/Extension | Rescued a captive Derelict 10954 | -5/Extension | Rescued a captive Derelict 10955 | -5/Extension | Rescued a captive Derelict 10966 | -5/Extension | Rescued a captive Derelict 10967 | -5/Extension | Rescued a captive Derelict 10972 | -5/Extension | Rescued a captive Derelict 10978 | -5/Extension | Rescued a captive Derelict 11000 | -5/Extension | Rescued a captive Derelict 11000 | -5/Extension | Rescued a captive Derelict 11085 | -5/Extension | Rescued a captive Derelict 11086 | -5/Extension | Rescued a captive Derelict 11097 | -5/Extension | Discovered exit to Factory (range 10) 11097 | -5/Extension | Discovered new exit (range 6) 11102 | -5/Extension | Identified exit to Cetus 11174 | -5/Extension | Entered Cetus 11174 | -5/Cetus | Accompanied by 18 allies (A7) 11179 | -5/Cetus | Acquired a Cetus Manufacturing Module code from A7 11183 | -5/Cetus | Spotted Cetus Guard 11183 | -5/Cetus | Spotted Cetus Guard 11185 | -5/Cetus | Spotted Cetus Guard 11194 | -5/Cetus | Allies destroyed Cetus Guard 11194 | -5/Cetus | Spotted Cetus Guard 11197 | -5/Cetus | Allies destroyed Cetus Guard 11197 | -5/Cetus | Destroyed Cetus Guard 11200 | -5/Cetus | Allies destroyed Cetus Guard 11231 | -5/Cetus | Escorted A7 to Cetus Mainframe 11235 | -5/Cetus | Discovered new exit (range 23) 11235 | -5/Cetus | DAS Turret deployed 11236 | -5/Cetus | Started Cetus Manufacturing Module 11261 | -5/Cetus | Manufactured an Enhanced Grunt 11286 | -5/Cetus | Manufactured an Enhanced Grunt 11311 | -5/Cetus | Manufactured an Enhanced Grunt 11336 | -5/Cetus | Manufactured an Enhanced Grunt 11361 | -5/Cetus | Manufactured an Enhanced Grunt 11428 | -5/Cetus | Spotted Cetus Guard 11429 | -5/Cetus | Spotted Cetus Guard 11429 | -5/Cetus | Spotted Cetus Guard 11429 | -5/Cetus | Spotted Cetus Guard 11437 | -5/Cetus | Allies destroyed Cetus Guard 11437 | -5/Cetus | Discovered exit to Factory (range 16) 11439 | -5/Cetus | Allies destroyed Cetus Guard 11439 | -5/Cetus | Allies destroyed Cetus Guard 11440 | -5/Cetus | Allies destroyed Cetus Guard 11442 | -5/Cetus | Met Revision 17 11451 | -5/Cetus | Identified exit to Archives 11492 | -5/Cetus | Destroyed A7 11496 | -5/Cetus | Extracted ID and sensor layout for unrecognized location from A7's data core 11497 | -5/Cetus | Entered Archives 11497 | -5/Archives | Accompanied by 12 allies 11525 | -5/Archives | Discovered new exit (range 15) 11528 | -5/Archives | Discovered new exit (range 16) 11540 | -5/Archives | Discovered exit to Factory (range 15) 11549 | -5/Archives | Unable to access archive contents 11557 | -5/Archives | Identified exit to Hub_04(d) 11564 | -5/Archives | Build established: Commander-Sprinter 11581 | -5/Archives | Entered Hub_04(d) 11581 | -5/Hub_04(d) | Accompanied by 12 allies 11663 | -5/Hub_04(d) | Discovered exit to Factory (range 16) 11722 | -5/Hub_04(d) | Discovered exit to Factory (range 15) 11768 | -5/Hub_04(d) | Network Hub disabled 11800 | -5/Hub_04(d) | Spotted Lightning 11802 | -5/Hub_04(d) | Spotted Lightning 11803 | -5/Hub_04(d) | Spotted Lightning 11804 | -5/Hub_04(d) | System corruption reached 10% 11820 | -5/Hub_04(d) | Core integrity fell below 50% 11820 | -5/Hub_04(d) | Spotted Lightning 11820 | -5/Hub_04(d) | Spotted Lightning 11820 | -5/Hub_04(d) | Spotted Lightning 11822 | -5/Hub_04(d) | Spotted Lightning 11823 | -5/Hub_04(d) | Spotted Lightning 11824 | -5/Hub_04(d) | Spotted Lightning 11827 | -5/Hub_04(d) | Core integrity fell below 20% 11827 | -5/Hub_04(d) | Entered Factory 11827 | -4/Factory | Evolved 2 slots: Power x1, Utility x1 11854 | -4/Factory | Lost 7 parts (1p5n1u) 12057 | -4/Factory | Build established: Mutant 12376 | -4/Factory | System corruption reached 10% 12377 | -4/Factory | Garrison activated, responded to threat 12401 | -4/Factory | Discovered new exit (range 4) 12403 | -4/Factory | Identified exit to Upper Caves 12444 | -4/Factory | Self-destructed Last Messages --------------- 12404_ System corrupted: Energy discharge (-51). 12405_ Acquired Prototype Flight Unit. 12405_ Identified Diametric Drive. 12419_ System corrupted: Component data lost. 12422_ Fusion-Deuterium Engine destroyed. 12422_ Scrap Engine damaged due to network destabilization (-8). 12423_ Slug penetrates P-70 Sage. 12423_ Slug penetrates Wall. 12429_ Slug penetrates P-70 Sage. 12432_ Slug penetrates Wall. 12435_ Slug penetrates P-70 Sage. 12436_ Adv. Sensor Array destroyed. 12438_ Slug penetrates P-70 Sage. 12438_ Slug penetrates Wall. 12439_ Antigrav System destroyed. 12439_ U-05 Engineer builds a Wall. 12441_ System corrupted: Energy discharge (-27). 12441_ Slug penetrates P-70 Sage. 12441_ P-70 Sage destroyed. 12443_ U-05 Engineer builds a Wall. Map ----- +----------------------------------------------------+ | ????????????###"?????????????????????????????????? | | ????????????? ?????????????????????????????????? | | ????????????? ?????????????????????????????????? | | ????????????? #????????????????????????????????? | | ?????????????? #????????????????????????????????? | | ?????????????? #????????????????????????????????? | | ??????????????# ????????????????????????????????? | | ??????????????# #????????????????????????????????? | | ?????????????## ##???????????????????????????????? | | ?????????????# #####????g??????????????????????? | | ?????????????+ +?????g?????????????????????? | | ?????????????# ### #???????????????????????#???? | | ##???????????##g##?# #?????g?????????????????# ??? | | #????????????#g#??# #???????????????????????# ?? | | #????????????# #### #???????????????????????# ?? | | #????????????# # ## #???????????????????????# ? | | #?############ "#?# #???????????????????????# | | #?# ## ##?# #??????p?????????##+##### | | #?# ##=#??# #??????????????? | | #### """"""" ##[#??# #??????????????? | | + """"""" ##%#??# #??????????????? | | #### """"""" ##!#??# #??????????????? | | ???# """"""" ##=#??# #??????????????? | | ???# ## #?## ######??????????? | | ##?# ## ####u#[ u ###### #???? | | #?#########+## ; ; !%%>@ #????? | | #?# + #######! # ##?????# | | #?# # #?????##### #??????# ]! | | #?# # ########### #??????? #####^^!! | | #?######### ###+####+##### !! | | #?????????# s # # | | ##?????????# # # | | ???????????# # # | | ???????????########## # + | | ##################### ## # | | ## + / | | ## # / | | ## # / | | ## # # | | ## # # | | =% "#] + + | | ######## + ##### | | # ## ###############???# | | #### # ## #?????????????????# | | ???# # ### +##?????????????????# | | ???# # # ??????????????# | | ???# + # #????????????# | | ???# ########### # """"" """"" #????????????# | | ???#####?????????# # """"" """"" ?????????????# | | ?????????????????# # """ """ ??????????????# | +----------------------------------------------------+ Best States ------------- Heat Dissipation 43 Coolant Potential 50 Energy Generation 25 Energy Capacity 315 Matter Stores 300 Matter Capacity 300 Sight Range 16 Robot Scan Range 16 Terrain Scan Density 10 Additional Mass Support 12 EM Shielding 3 Armor Coverage 450 Core Shielding 20 Weapon Shielding 90 Evasion (%) 64 Melee Accuracy 16 Recoil Reduction 1 Offensive Hacking 12 Defensive Hacking 10 Authchip Count 1 Item Schematics ----------------- Cmb. Airjet | -9/Materials | Scanalyzed Aerolev Unit | -7/Factory | Scanalyzed Thermic Laser | -7/Factory | Hacked Imp. Field Recycling Unit | -7/Zion | Archive Thermal Shield | -7/Zion | Archive Power Maul | -7/Zion | Archive Remote Datajack | -7/Zion | Archive Imp. EM Pulse Cannon | -7/Zion | Archive Angular Momentum Engine | -7/Zion | Archive Lyr. Medium Armor Plating | -7/Zion | Archive Imp. Weapon Cycler | -7/Zion | Archive Focal Shield | -7/Zion | Archive Plasma Cannon | -7/Zion | Archive Hvy. Flak Cannon | -7/Zion | Archive Matter Filter | -7/Zion | Archive Spk. Medium Treads | -7/Zion | Archive Gatling Laser | -7/Zion | Archive Imp. Remote Datajack | -7/Zion | Archive Imp. Armor Integrity Analyzer | -6/Factory | Hacked Imp. Airjet | -6/Factory | Hacked Cld. Airjet | -6/Factory | Hacked Combat Drone Bay | -6/Data Miner | Free Lgt. Regenerative Plating | -6/Data Miner | Free Cld. Nuclear Pulse Thruster | -6/Data Miner | Free Prc. Energy Filter | -6/Data Miner | Free Kinetic Spear | -6/Data Miner | Free Imp. Linear Gravjet | -6/Data Miner | Free Adv. Hardlight Generator | -6/Data Miner | Free Dispersion Rifle | -6/Data Miner | Free Adv. Reaction Control System | -6/Data Miner | Free Cmb. Antigrav System | -6/Data Miner | Free Adv. Hacking Suite | -5/Factory | Hacked Robot Schematics ------------------ S-27 Virus | -7/Zion | Archive Y-45 Defender | -7/Zion | Archive C-57 Dissector | -7/Zion | Archive K-01 Serf | -6/Factory | Hacked G-50 Soldier | -6/Factory | Hacked L-41 Fighter | -6/Data Miner | Free Y-54 Guardian | -6/Data Miner | Free B-60 Warrior | -6/Data Miner | Free R-10 Processor | -6/Data Miner | Free E-15 Imp | -6/Data Miner | Free Fabricated ------------ Nuclear Pulse Thruster | x2 | -7/Factory | Preloaded Cld. Airjet | x1 | -5/Factory | Authchip Alien Tech Used ----------------- None Achievements -------------- None Challenges ------------ None Game ------ Seed RelayDeepSuperbattery Manual? 0 Play Time 03:41:24 Cumulative 933.0 hours Start 2022.09.18 @ 18:21:49 End 2022.09.19 @ 11:51:58 Sessions 3 Manual Loads 0 Difficulty Rogue Special Mode None Game No. 485 Rogue 485 Adventurer 0 Explorer 0 Win Type - Total 68 Types 38/5/14/6/1/1/3/0/0 Lore% 87 Gallery% 89 Achievement% 76 Wizard Run 0 Options --------- ASCII 0 Keyboard 0 Movement Mouse Keybinds 0 Fullscreen 1 Font 28/SmallcapsLarge Map View 72x54 Tactical HUD 1 Map Filters NONE Filters NONE Steam 0 RUN: 2b1c65b1-e8fb-4fac-a53e-caa25c3ba196